fUST/lending_fUST_20240517
["ID","MTS","AMOUNT","RATE_DAILY","PERIOD"]
[327273460,1715953857333,-4245.10312353,0.0002,2]
[327273461,1715953857342,-563.0,0.0002,2]
[327273462,1715953857352,-563.0,0.0002,2]
[327273463,1715953857361,-563.0,0.0002,2]
[327273464,1715953857370,-815.0,0.0002,2]
[327273465,1715953857379,-815.0,0.0002,2]
[327273466,1715953857388,-815.0,0.0002,2]
[327273467,1715953857397,-815.0,0.0002,2]
[327273468,1715953857406,-815.0,0.0002,2]
[327273469,1715953857415,-815.0,0.0002,2]
[327273470,1715953857424,-504.0,0.0002,2]
[327273471,1715953857433,-2000.0,0.0002,3]
[327273472,1715953857442,-2000.0,0.0002,3]
[327273473,1715953857451,-815.0,0.0002,2]
[327273474,1715953857460,-2000.0,0.0002,2]
[327273475,1715953857469,-2000.0,0.0002,2]
[327273476,1715953857479,-154.76784823,0.0002,2]
[327273477,1715953857488,-278.60293256,0.0002,2]
[327273478,1715953857497,-281.0,0.0002,2]
[327273479,1715953857506,-1026.1755833,0.0002,2]
[327273480,1715953857515,-50082.0724,0.0002,2]
[327273481,1715953857524,-2000.0,0.0002,2]
[327273482,1715953857533,-2000.0,0.0002,2]
[327273483,1715953857542,-526.89542945,0.0002,4]
[327273484,1715953857552,-279.75139145,0.0002,2]
[327273485,1715953857562,-281.0,0.0002,2]
[327273486,1715953857571,-168.18535403,0.0002,2]
[327273487,1715953857580,-1146.0,0.0002,2]
[327273488,1715953857590,-53224.75705547,0.0002,2]
[327273489,1715953857602,-1701.47,0.0002,2]
[327273490,1715953857614,-501.02,0.0002,2]
[327273491,1715953857624,-2822.25,0.0002,2]
[327273492,1715953857633,-1003.49,0.0002,2]
[327273493,1715953857643,-200.0,0.0002,2]
[327273494,1715953857653,-4603.31,0.0002,2]
[327273495,1715953857662,-151.24291427,0.0002,2]
[327273496,1715953857671,-1230.34,0.0002,2]
[327273497,1715953857681,-500.0,0.0002,2]
[327273498,1715953857694,-4066.14,0.0002,2]
[327273499,1715953857704,-529.68,0.0002,2]
[327273500,1715953857714,-9429.85,0.0002,2]
[327273501,1715953857724,-600.0,0.0002,2]
[327273502,1715953857734,-547.37,0.0002,2]
[327273503,1715953857744,-956.95,0.0002,2]
[327273504,1715953857753,-814.3412291,0.0002009,2]
[327273505,1715953857763,-600.0,0.000202,2]
[327273506,1715953857772,-1701.47,0.00020273,2]
[327273507,1715953857782,-501.02,0.00020273,2]
[327273508,1715953857791,-2822.25,0.00020273,2]
[327273509,1715953857800,-1003.49,0.00020273,2]
[327273510,1715953857810,-4603.31,0.00020273,2]
[327273511,1715953857819,-1230.34,0.00020273,2]
[327273512,1715953857828,-618.36,0.00020273,2]
[327273513,1715953857837,-4066.14,0.00020273,2]
[327273514,1715953857848,-529.68,0.00020273,2]
[327273515,1715953857858,-9429.85,0.00020273,2]
[327273516,1715953857867,-547.37,0.00020273,2]
[327273517,1715953857876,-956.95,0.00020273,2]
[327273518,1715953857886,-392.11948876,0.000203,2]
[327273519,1715953857896,-600.0,0.000204,2]
[327273520,1715953857905,-1000.0,0.000205,2]
[327273521,1715953857914,-2308.98924566,0.000205,5]
[327273522,1715953857923,-1701.47,0.00020547,2]
[327273523,1715953857932,-501.02,0.00020547,2]
[327273524,1715953857941,-2822.25,0.00020547,2]
[327273525,1715953857951,-1003.49,0.00020547,2]
[327273526,1715953857960,-4603.31,0.00020547,2]
[327273527,1715953857969,-1230.34,0.00020547,2]
[327273528,1715953857978,-4066.14,0.00020547,2]
[327273529,1715953857987,-529.68,0.00020547,2]
[327273530,1715953857996,-9429.85,0.00020547,2]
[327273531,1715953858005,-547.37,0.00020547,2]
[327273532,1715953858015,-956.95,0.00020547,2]
[327273533,1715953858024,-600.0,0.000206,2]
[327273534,1715953858034,-581.80397937,0.0002066,7]
[327273535,1715953858043,-2775.3573136,0.000207,3]
[327273536,1715953858052,-600.0,0.000208,2]
[327273537,1715953858062,-1701.47,0.00020821,2]
[327273538,1715953858070,-501.02,0.00020821,2]
[327273539,1715953858079,-2822.25,0.00020821,2]
[327273540,1715953858089,-1003.49,0.00020821,2]
[327273541,1715953858099,-4603.31,0.00020821,2]
[327273542,1715953858109,-1230.34,0.00020821,2]
[327273543,1715953858118,-4066.14,0.00020821,2]
[327273544,1715953858127,-529.68,0.00020821,2]
[327273545,1715953858137,-9429.85,0.00020821,2]
[327273546,1715953858146,-547.37,0.00020821,2]
[327273547,1715953858155,-956.95,0.00020821,2]
[327273548,1715953858164,-9558.52050699,0.0002088,2]
[327273549,1715953858174,-590.0,0.000209,2]
[327273550,1715953858183,-6793.39145798,0.000209,2]
[327273551,1715953858192,-266.27035804,0.00020911,2]
[327273552,1715953858201,-5019.250248,0.00021,2]
[327273553,1715953858211,-10000.0,0.00021,2]
[327273554,1715953858220,-1000.0,0.00021,2]
[327273555,1715953858229,-1000.0,0.00021,2]
[327273556,1715953858238,-1000.0,0.00021,2]
[327273557,1715953858247,-20147.57787038,0.00021,2]
[327273558,1715953858256,-237.17744027,0.00021,2]
[327273559,1715953858265,-10034.652816,0.00021,2]
[327273560,1715953858274,-197.72447578,0.00021,2]
[327273561,1715953858283,-9322.92256472,0.00021,5]
[327273562,1715953858292,-280.0,0.00021,2]
[327273563,1715953858301,-1000.0,0.00021,2]
[327273564,1715953858310,-5370.96887687,0.00021,2]
[327273565,1715953858320,-1622.05035311,0.00021,2]
[327273566,1715953858329,-949.56791626,0.00021,2]
[327273567,1715953858339,-629.71706145,0.00021094,2]
[327273568,1715953858349,-1701.47,0.00021095,2]
[327273569,1715953858358,-501.02,0.00021095,2]
[327273570,1715953858367,-2822.25,0.00021095,2]
[327273571,1715953858376,-1003.49,0.00021095,2]
[327273572,1715953858385,-4603.31,0.00021095,2]
[327273573,1715953858395,-1230.34,0.00021095,2]
[327273574,1715953858404,-4066.14,0.00021095,2]
[327273575,1715953858413,-529.68,0.00021095,2]
[327273576,1715953858422,-9429.85,0.00021095,2]
[327273577,1715953858432,-547.37,0.00021095,2]
[327273578,1715953858441,-956.95,0.00021095,2]
[327273579,1715953858450,-3709.0,0.000211,10]
[327273580,1715953858459,-1701.47,0.00021369,2]
[327273581,1715953858468,-501.02,0.00021369,2]
[327273582,1715953858478,-2822.25,0.00021369,2]
[327273583,1715953858487,-1003.49,0.00021369,2]
[327273584,1715953858496,-4603.31,0.00021369,2]
[327273585,1715953858507,-1230.34,0.00021369,2]
[327273586,1715953858516,-4066.14,0.00021369,2]
[327273587,1715953858525,-529.68,0.00021369,2]
[327273588,1715953858535,-9429.85,0.00021369,2]
[327273589,1715953858544,-547.37,0.00021369,2]
[327273590,1715953858553,-956.95,0.00021369,2]
[327273591,1715953858562,-151.0,0.0002137,2]
[327273592,1715953858572,-151.0,0.0002137,2]
[327273593,1715953858581,-151.0,0.0002137,2]
[327273594,1715953858590,-166.476336,0.0002137,2]
[327273595,1715953858601,-5600.0,0.000215,6]
[327273596,1715953858613,-1508.4,0.000215,2]
[327273597,1715953858622,-3000.0,0.000215,2]
[327273598,1715953858631,-3000.0,0.0002151,2]
[327273599,1715953858640,-3000.0,0.0002152,2]
[327273600,1715953858650,-3000.0,0.0002153,2]
[327273601,1715953858661,-3000.0,0.0002154,2]
[327273602,1715953858670,-3000.0,0.0002155,2]
[327273603,1715953858679,-3000.0,0.0002156,2]
[327273604,1715953858690,-3000.0,0.0002157,2]
[327273605,1715953858699,-3000.0,0.0002158,2]
[327273606,1715953858708,-3000.0,0.0002159,2]
[327273607,1715953858717,-3000.0,0.000216,2]
[327273608,1715953858727,-3000.0,0.0002161,2]
[327273609,1715953858737,-3000.0,0.0002162,2]
[327273610,1715953858746,-3000.0,0.0002163,2]
[327273611,1715953858756,-3000.0,0.0002164,2]
[327273612,1715953858765,-1701.47,0.00021643,2]
[327273613,1715953858774,-501.02,0.00021643,2]
[327273614,1715953858783,-2822.25,0.00021643,2]
[327273615,1715953858792,-1003.49,0.00021643,2]
[327273616,1715953858802,-4603.31,0.00021643,2]
[327273617,1715953858811,-1230.34,0.00021643,2]
[327273618,1715953858821,-3086.58311573,0.00021643,2]
[327273619,1715953859099,-151.0,0.00016986,2]
[327273620,1715953859109,-151.0,0.0001726,2]
[327273621,1715953859118,-151.0,0.00017808,2]
[327273622,1715953859128,-801.75,0.00021643,2]
[327273623,1715953859142,-177.80688427,0.00021643,2]
[327273624,1715953859151,-529.68,0.00021643,2]
[327273625,1715953859161,-159.70311573,0.00021643,2]
[327273626,1715953859173,-9270.14688427,0.00021643,2]
[327273627,1715953859184,-547.37,0.00021643,2]
[327273628,1715953859193,-956.95,0.00021643,2]
[327273629,1715953859203,-3000.0,0.0002165,2]
[327273630,1715953859212,-3000.0,0.0002166,2]
[327273631,1715953859221,-3000.0,0.0002167,2]
[327273632,1715953859230,-3000.0,0.0002168,2]
[327273633,1715953859239,-3000.0,0.0002169,2]
[327273634,1715953859248,-3000.0,0.000217,2]
[327273635,1715953859258,-3000.0,0.0002171,2]
[327273636,1715953859267,-3000.0,0.0002172,2]
[327273637,1715953859277,-3000.0,0.0002173,2]
[327273638,1715953859286,-3000.0,0.0002174,2]
[327273639,1715953859296,-3000.0,0.0002175,2]
[327273640,1715953859306,-1000.0,0.00021759,2]
[327273641,1715953859316,-3000.0,0.0002176,2]
[327273642,1715953859325,-1000.0,0.00021762,2]
[327273643,1715953859336,-3000.0,0.0002177,2]
[327273644,1715953859347,-1000.0,0.00021772,2]
[327273645,1715953859357,-3000.0,0.0002178,2]
[327273646,1715953859366,-1000.0,0.00021787,2]
[327273647,1715953859376,-3000.0,0.0002179,2]
[327273648,1715953859386,-1000.0,0.000218,12]
[327273649,1715953859395,-3000.0,0.000218,2]
[327273650,1715953859404,-3000.0,0.0002181,2]
[327273651,1715953859414,-303.5252822,0.00021815,2]
[327273652,1715953859424,-3000.0,0.0002182,2]
[327273653,1715953859434,-3000.0,0.0002183,2]
[327273654,1715953859445,-3000.0,0.0002184,2]
[327273655,1715953859454,-3000.0,0.0002185,2]
[327273656,1715953859464,-3000.0,0.0002186,2]
[327273657,1715953859473,-3000.0,0.0002187,2]
[327273658,1715953859483,-3000.0,0.0002188,2]
[327273659,1715953859493,-1000.0,0.0002188,2]
[327273660,1715953859502,-1000.0,0.00021888,2]
[327273661,1715953859512,-3000.0,0.0002189,2]
[327273662,1715953859522,-500.0,0.000219,2]
[327273663,1715953859531,-668.16,0.000219,2]
[327273664,1715953859540,-3000.0,0.000219,2]
[327273665,1715953859549,-3000.0,0.0002191,2]
[327273666,1715953859559,-14975.32139087,0.00021915,2]
[327273667,1715953859569,-1701.47,0.00021917,2]
[327273668,1715953859578,-501.02,0.00021917,2]
[327273669,1715953859588,-2822.25,0.00021917,2]
[327273670,1715953859599,-1003.49,0.00021917,2]
[327273671,1715953859611,-300.0,0.00021917,2]
[327273672,1715953859621,-300.0,0.00021917,2]
[327273673,1715953859630,-300.0,0.00021917,2]
[327273674,1715953859640,-300.0,0.00021917,2]
[327273675,1715953859649,-300.0,0.00021917,2]
[327273676,1715953859658,-300.0,0.00021917,2]
[327273677,1715953859667,-300.0,0.00021917,2]
[327273678,1715953859677,-300.0,0.00021917,2]
[327273679,1715953859686,-300.0,0.00021917,2]
[327273680,1715953859697,-300.0,0.00021917,2]
[327273681,1715953859707,-300.0,0.00021917,2]
[327273682,1715953859716,-300.0,0.00021917,2]
[327273683,1715953859726,-300.0,0.00021917,2]
[327273684,1715953859736,-300.0,0.00021917,2]
[327273685,1715953859746,-300.0,0.00021917,2]
[327273686,1715953859756,-300.0,0.00021917,2]
[327273687,1715953859765,-300.0,0.00021917,2]
[327273688,1715953859775,-300.0,0.00021917,2]
[327273689,1715953859784,-300.0,0.00021917,2]
[327273690,1715953859793,-300.0,0.00021917,2]
[327273691,1715953859802,-300.0,0.00021917,2]
[327273692,1715953859812,-4603.31,0.00021917,2]
[327273693,1715953859822,-1230.34,0.00021917,2]
[327273694,1715953859831,-4066.14,0.00021917,2]
[327273695,1715953859841,-529.68,0.00021917,2]
[327273696,1715953859851,-9429.85,0.00021917,2]
[327273697,1715953859860,-547.37,0.00021917,2]
[327273698,1715953859869,-956.95,0.00021917,2]
[327273699,1715953859879,-24150.954323,0.00021918,2]
[327273700,1715953859889,-715.463419,0.00021918,2]
[327273701,1715953859907,-715.463419,0.00021918,2]
[327273702,1715953859923,-715.463419,0.00021918,2]
[327273703,1715953859937,-715.463419,0.00021918,2]
[327273704,1715953859950,-715.463419,0.00021918,2]
[327273705,1715953859966,-715.463419,0.00021918,2]
[327273706,1715953859980,-715.463419,0.00021918,2]
[327273707,1715953859995,-715.463419,0.00021918,2]
[327273708,1715953860010,-715.463419,0.00021918,2]
[327273709,1715953860026,-715.463419,0.00021918,2]
[327273710,1715953860041,-715.463419,0.00021918,2]
[327273711,1715953860054,-715.463419,0.00021918,2]
[327273712,1715953860069,-715.463419,0.00021918,2]
[327273713,1715953860086,-715.463419,0.00021918,2]
[327273714,1715953860099,-715.463419,0.00021918,2]
[327273715,1715953860110,-715.463419,0.00021918,2]
[327273716,1715953860122,-715.463419,0.00021918,2]
[327273717,1715953860136,-715.463419,0.00021918,2]
[327273718,1715953860149,-715.463419,0.00021918,2]
[327273719,1715953860163,-715.463412,0.00021918,2]
[327273720,1715953860177,-166.666666,0.00021918,2]
[327273721,1715953860193,-10000.0,0.00021918,2]
[327273722,1715953860204,-1000.0,0.00021918,2]
[327273723,1715953860216,-3000.0,0.0002192,2]
[327273724,1715953860229,-3000.0,0.0002193,2]
[327273725,1715953860244,-3000.0,0.0002194,2]
[327273726,1715953860259,-3000.0,0.0002195,2]
[327273727,1715953860271,-3000.0,0.0002196,2]
[327273728,1715953860284,-1000.0,0.00021965,2]
[327273729,1715953860299,-3000.0,0.0002197,2]
[327273730,1715953860311,-3000.0,0.0002198,2]
[327273731,1715953860322,-3000.0,0.0002199,2]
[327273732,1715953860335,-1000.0,0.00021995,2]
[327273733,1715953860347,-1001.0,0.00022,7]
[327273734,1715953860360,-4463.0,0.00022,2]
[327273735,1715953860373,-593.34834519,0.00022,2]
[327273736,1715953860385,-3379.75996372,0.00022,4]
[327273737,1715953860397,-159.63021158,0.00022,2]
[327273738,1715953860410,-12789.28776343,0.00022,2]
[327273739,1715953860422,-12570.33735537,0.00022,2]
[327273740,1715953860434,-10000.0,0.00022,2]
[327273741,1715953860447,-1000.0,0.00022,2]
[327273742,1715953860458,-1000.0,0.00022,2]
[327273743,1715953860471,-3520.84707612,0.00022,2]
[327273744,1715953860483,-154.78330338,0.00022,14]
[327273745,1715953860495,-1000.0,0.00022,2]
[327273746,1715953860508,-57872.71819902,0.00022,2]
[327273747,1715953860520,-3000.0,0.00022,2]
[327273748,1715953860533,-1000.0,0.00022,2]
[327273749,1715953860546,-1822.768463,0.00022,2]
[327273750,1715953860559,-3000.0,0.0002201,2]
[327273751,1715953860572,-3798.279638,0.0002202,2]
[327273752,1715953860582,-620.48585307,0.00022149,2]
[327273753,1715953860591,-1701.47,0.00022191,2]
[327273754,1715953860602,-501.02,0.00022191,2]
[327273755,1715953860614,-2822.25,0.00022191,2]
[327273756,1715953860623,-1003.49,0.00022191,2]
[327273757,1715953860633,-300.0,0.00022191,2]
[327273758,1715953860643,-4603.31,0.00022191,2]
[327273759,1715953860654,-1230.34,0.00022191,2]
[327273760,1715953860664,-4066.14,0.00022191,2]
[327273761,1715953860674,-529.68,0.00022191,2]
[327273762,1715953860684,-9429.85,0.00022191,2]
[327273763,1715953860695,-547.37,0.00022191,2]
[327273764,1715953860705,-956.95,0.00022191,2]
[327273765,1715953860715,-1066.77092737,0.000223,2]
[327273766,1715953860724,-1000.0,0.00022378,2]
[327273767,1715953860734,-324.35403102,0.00022393,2]
[327273768,1715953860744,-1000.0,0.00022396,2]
[327273769,1715953860753,-409.070033,0.00022421,2]
[327273770,1715953860767,-166.666666,0.00022431,2]
[327273771,1715953860776,-230.1422143,0.00022465,2]
[327273772,1715953860787,-1701.47,0.00022465,2]
[327273773,1715953860796,-501.02,0.00022465,2]
[327273774,1715953860805,-2822.25,0.00022465,2]
[327273775,1715953860814,-1003.49,0.00022465,2]
[327273776,1715953860824,-412.65726584,0.00022465,2]
[327273777,1715953860833,-4603.31,0.00022465,2]
[327273778,1715953860843,-1230.34,0.00022465,2]
[327273779,1715953860854,-4066.14,0.00022465,2]
[327273780,1715953860863,-529.68,0.00022465,2]
[327273781,1715953860873,-9429.85,0.00022465,2]
[327273782,1715953860883,-547.37,0.00022465,2]
[327273783,1715953860892,-956.95,0.00022465,2]
[327273784,1715953860901,-1000.0,0.00022472,2]
[327273785,1715953860911,-1000.0,0.000225,2]
[327273786,1715953860920,-15750.89905734,0.0002255,2]
[327273787,1715953860929,-800.04995687,0.00022565,2]
[327273788,1715953860939,-1000.0,0.00022571,2]
[327273789,1715953860948,-227.13187928,0.00022584,2]
[327273790,1715953860959,-1000.0,0.00022604,2]
[327273791,1715953861168,-1000.0,0.00022622,2]
[327273792,1715953861187,-1701.52620972,0.00022739,2]
[327273793,1715953861201,-501.25,0.00022739,2]
[327273794,1715953861212,-2822.37442258,0.00022739,2]
[327273795,1715953861222,-1003.52189546,0.00022739,2]
[327273796,1715953861232,-4603.42864769,0.00022739,2]
[327273797,1715953861242,-1230.5728312,0.00022739,2]
[327273798,1715953861251,-4066.36543965,0.00022739,2]
[327273799,1715953861260,-529.86082011,0.00022739,2]
[327273800,1715953861270,-9429.94360594,0.00022739,2]
[327273801,1715953861279,-547.46229147,0.00022739,2]
[327273802,1715953861289,-957.07366612,0.00022739,2]
[327273803,1715953861298,-166.666666,0.00022944,2]
[327273804,1715953861307,-154.8915759,0.00023,2]
[327273805,1715953861317,-1500.0,0.00023,2]
[327273806,1715953861326,-1500.0,0.00023,2]
[327273807,1715953861337,-1500.0,0.00023,2]
[327273808,1715953861348,-1549.07,0.00023,2]
[327273809,1715953861358,-1500.0,0.00023,2]
[327273810,1715953861367,-1500.0,0.00023,2]
[327273811,1715953861376,-1000.0,0.00023,2]
[327273812,1715953861385,-1000.0,0.00023,2]
[327273813,1715953861395,-1000.0,0.00023,2]
[327273814,1715953861404,-5000.0,0.00023,3]
[327273815,1715953861414,-154.73694719,0.00023,2]
[327273816,1715953861423,-123687.8600214,0.00023,7]
[327273817,1715953861433,-10640.82757266,0.00023,2]
[327273818,1715953861442,-154.7215013,0.00023,2]
[327273819,1715953861452,-154.7215013,0.00023,2]
[327273820,1715953861461,-7632.34064759,0.00023,2]
[327273821,1715953861471,-1846.8154,0.00023,2]
[327273822,1715953861481,-150.0,0.00023,2]
[327273823,1715953861490,-1000.0,0.00023,2]
[327273824,1715953861499,-270.0,0.00023013,2]
[327273825,1715953861509,-150.72868836,0.00023179,30]
[327273826,1715953861518,-620.02429265,0.00023256,2]
[327273827,1715953861527,-166.666666,0.00023456,2]
[327273828,1715953861536,-150.72868836,0.00023652,7]
[327273829,1715953861545,-1392.98339089,0.0002388,2]
[327273830,1715953861555,-166.666666,0.00023969,2]
[327273831,1715953861564,-1499.11197216,0.00024,7]
[327273832,1715953861574,-1000.0,0.00024,2]
[327273833,1715953861583,-1000.0,0.00024,2]
[327273834,1715953861592,-1000.0,0.00024,2]
[327273835,1715953861604,-680.19878507,0.00024,2]
[327273836,1715953861620,-1000.0,0.00024,24]
[327273837,1715953861629,-155.34728167,0.00024,2]
[327273838,1715953861638,-150.0,0.00024,2]
[327273839,1715953861648,-150.5,0.0002408,35]
[327273840,1715953861658,-2352.0,0.0002408,35]
[327273842,1715953861668,-239.0,0.0002408,35]
[327273843,1715953861678,-211.24,0.0002408,35]
[327273844,1715953861688,-376.0,0.0002408,35]
[327273845,1715953861697,-580.0,0.0002408,35]
[327273846,1715953861708,-150.5,0.0002409,35]
[327273847,1715953861718,-2352.0,0.0002409,35]
[327273848,1715953861728,-239.0,0.0002409,35]
[327273849,1715953861738,-166.17,0.0002409,35]
[327273850,1715953861747,-158.24,0.0002409,35]
[327273851,1715953861756,-150.5,0.0002409,35]
[327273852,1715953861767,-376.0,0.0002409,35]
[327273853,1715953861776,-580.0,0.0002409,35]
[327273854,1715953861786,-150.5,0.000241,35]
[327273855,1715953861795,-2352.0,0.000241,35]
[327273856,1715953861804,-239.0,0.000241,35]
[327273857,1715953861814,-150.5,0.000241,35]
[327273858,1715953861823,-150.5,0.000241,35]
[327273859,1715953861832,-150.5,0.000241,35]
[327273860,1715953861842,-376.0,0.000241,35]
[327273861,1715953862060,-580.0,0.000241,35]
[327273862,1715953862070,-150.72868836,0.00024135,4]
[327273863,1715953862080,-750.0,0.00024384,2]
[327273864,1715953862090,-15180.12319418,0.000244,2]
[327273865,1715953862100,-620.00121463,0.00024419,2]
[327273866,1715953862110,-166.666666,0.00024482,2]
[327273867,1715953862119,-1006.94612917,0.000245,2]
[327273868,1715953862129,-155.31745002,0.000245,2]
[327273869,1715953862140,-151.26620722,0.0002462,2]
[327273870,1715953862149,-150.72868836,0.00024627,2]
[327273871,1715953862160,-153.40692881,0.00024656,2]
[327273872,1715953862169,-500.0,0.00024658,2]
[327273873,1715953862179,-200.0,0.00024658,2]
[327273874,1715953862189,-200.0,0.00024658,15]
[327273875,1715953862200,-380.0,0.00024658,2]
[327273876,1715953862209,-151.26620722,0.00024679,2]
[327273877,1715953862219,-1328.0,0.00024686,2]
[327273878,1715953862230,-1476.55208577,0.00024687,2]
[327273879,1715953862239,-2141.05337246,0.00024697,2]
[327273880,1715953862248,-2141.05337246,0.00024724,2]
[327273881,1715953862258,-2141.05337246,0.00024743,2]
[327273882,1715953862268,-153.93970396,0.00024751,2]
[327273883,1715953862279,-151.26620722,0.00024758,2]
[327273884,1715953862288,-1476.55208577,0.00024781,2]
[327273885,1715953862297,-1476.55208577,0.00024784,2]
[327273886,1715953862307,-1476.55208577,0.00024785,2]
[327273887,1715953862317,-151.26620722,0.00024788,2]
[327273888,1715953862327,-2141.05337246,0.0002479,2]
[327273889,1715953862336,-1018.26,0.000248,15]
[327273890,1715953862346,-154.08168269,0.00024825,2]
[327273891,1715953862356,-153.27075868,0.00024826,2]
[327273892,1715953862365,-153.93970396,0.00024831,2]
[327273893,1715953862375,-151.26620722,0.00024834,2]
[327273894,1715953862384,-151.26620722,0.00024835,2]
[327273895,1715953862393,-153.40692881,0.00024865,2]
[327273896,1715953862403,-1476.55208577,0.00024895,2]
[327273897,1715953862413,-1476.55208577,0.00024909,2]
[327273898,1715953862422,-154.08168269,0.00024932,2]
[327273899,1715953862433,-1476.55208577,0.00024983,2]
[327273900,1715953862443,-2141.05337246,0.00024986,2]
[327273901,1715953862453,-151.0,0.00024987,2]
[327273902,1715953862463,-1018.97455524,0.00025,2]
[327273903,1715953862472,-400.55879163,0.00025,2]
[327273904,1715953862481,-167.35509674,0.00025,2]
[327273905,1715953862491,-160.0,0.00025,2]
[327273906,1715953862500,-155.26465227,0.00025,2]
[327273907,1715953862509,-300.0,0.00025,2]
[327273908,1715953862519,-300.0,0.00025,2]
[327273909,1715953862528,-300.0,0.00025,2]
[327273910,1715953862538,-300.0,0.00025,2]
[327273911,1715953862547,-300.0,0.00025,2]
[327273912,1715953862556,-300.0,0.00025,2]
[327273913,1715953862566,-300.0,0.00025,2]
[327273914,1715953862576,-300.0,0.00025,2]
[327273915,1715953862586,-300.0,0.00025,2]
[327273916,1715953862595,-300.0,0.00025,2]
[327273917,1715953862604,-1541.719356,0.00025,2]
[327273918,1715953862620,-300.0,0.00025,2]
[327273919,1715953862630,-300.0,0.00025,2]
[327273920,1715953862639,-300.0,0.00025,2]
[327273921,1715953862648,-300.0,0.00025,2]
[327273922,1715953862659,-300.0,0.00025,2]
[327273923,1715953862669,-300.0,0.00025,2]
[327273924,1715953862679,-300.0,0.00025,2]
[327273925,1715953862690,-300.0,0.00025,2]
[327273926,1715953862699,-300.0,0.00025,2]
[327273927,1715953862709,-250.0,0.00025,25]
[327273928,1715953862718,-250.0,0.00025,25]
[327273929,1715953862728,-250.0,0.00025,25]
[327273930,1715953862737,-250.0,0.00025,25]
[327273931,1715953862747,-250.0,0.00025,25]
[327273932,1715953862756,-250.0,0.00025,25]
[327273933,1715953862766,-250.0,0.00025,25]
[327273934,1715953862776,-250.0,0.00025,25]
[327273935,1715953862785,-250.0,0.00025,25]
[327273936,1715953862795,-250.0,0.00025,25]
[327273937,1715953862805,-406.527,0.00025,25]
[327273938,1715953862815,-300.0,0.00025,2]
[327273939,1715953862824,-300.0,0.00025,2]
[327273940,1715953862834,-300.0,0.00025,2]
[327273941,1715953862844,-300.0,0.00025,2]
[327273942,1715953862855,-300.0,0.00025,2]
[327273943,1715953862864,-300.0,0.00025,2]
[327273944,1715953862873,-1000.0,0.00025,2]
[327273945,1715953862883,-1000.0,0.00025,2]
[327273946,1715953862893,-1000.0,0.00025,2]
[327273947,1715953862902,-300.0,0.00025,2]
[327273948,1715953862911,-415.2,0.00025,2]
[327273949,1715953862921,-415.199999,0.00025,2]
[327273950,1715953862931,-415.2,0.00025,2]
[327273951,1715953862940,-415.2,0.00025,2]
[327273952,1715953862951,-5328.86024116,0.00025,2]
[327273953,1715953863215,273.37336231,9.9e-05,2]
[327273954,1715953872950,273.37336231,9.9e-05,2]
[327273955,1715953883168,215.00662146,9.9e-05,2]
[327273956,1715953883191,58.36674085,9.9e-05,2]
[327273957,1715953894422,273.37336231,9.9e-05,2]
[327273958,1715953906581,273.37336231,9.9e-05,2]
[327273959,1715953917922,273.37336231,9.9e-05,2]
[327273961,1715953926662,273.37336231,9.9e-05,2]